bitfinex-derivatives/quotes_BTCF0:USTF0_20241008
["timestamp","ask_amount","ask_price","bid_price","bid_amount"]
[1728371840677,0.052189,62290.0,62286.0,0.052191]
[1728371840871,0.052189,62290.0,62285.0,0.0326]
[1728371840872,0.3608,62291.0,62287.0,0.05219]
[1728371841378,0.55164,62296.0,62287.0,0.5508]
[1728371841581,0.5508,62296.0,62292.0,0.052186]
[1728371841776,0.3608,62296.0,62290.0,0.19]
[1728371841985,0.3608,62296.0,62294.0,0.242184]
[1728371842287,0.052187,62291.0,62285.0,0.0363]
[1728371842489,0.19,62288.0,62285.0,0.052192]
[1728371843279,0.24219,62288.0,62285.0,0.052192]
[1728371843978,0.052192,62285.0,62278.0,0.087597]
[1728371844181,0.19,62283.0,62280.0,0.052196]
[1728371844383,0.19,62283.0,62281.0,0.052195]
[1728371845391,0.3608,62282.0,62271.0,0.3655]
[1728371845575,0.3608,62282.0,62267.0,1.54799179]
[1728371845576,0.19,62272.0,62268.0,0.052206]
[1728371846183,0.19,62272.0,62265.0,0.3608]
[1728371846383,0.19,62268.0,62265.0,0.413008]
[1728371846689,0.19,62268.0,62266.0,0.052208]
[1728371847190,0.19,62268.0,62263.0,0.00240906]
[1728371847383,0.19,62268.0,62263.0,0.36320906]
[1728371848286,0.05221,62265.0,62263.0,0.00240906]
[1728371848687,0.191,62268.0,62263.0,0.00240906]
[1728371849284,0.192,62268.0,62263.0,0.00240906]
[1728371849981,0.192,62268.0,62263.0,0.05461906]
[1728371850779,0.192,62268.0,62263.0,0.00240906]
[1728371850985,0.191,62268.0,62263.0,0.00240906]
[1728371851284,0.001,62265.0,62263.0,0.00240906]
[1728371851789,0.19,62264.0,62263.0,0.00240906]
[1728371852290,0.192,62268.0,62263.0,0.00240906]
[1728371852792,0.191,62268.0,62263.0,0.05461906]
[1728371852993,0.002,62265.0,62263.0,0.05461906]
[1728371853697,0.001,62265.0,62263.0,0.41541906]
[1728371854085,0.001,62265.0,62263.0,0.05461906]
[1728371854286,0.001,62265.0,62263.0,0.41541906]
[1728371854792,0.002,62268.0,62266.0,0.052208]
[1728371855295,0.001,62268.0,62266.0,0.052208]
[1728371855491,0.19,62273.0,62263.0,0.36320906]
[1728371855492,0.001,62265.0,62264.0,0.05221]
[1728371856286,0.002,62268.0,62263.0,0.00240906]
[1728371856494,0.002,62268.0,62266.0,0.052208]
[1728371857086,0.001,62268.0,62266.0,0.052208]
[1728371857988,0.001,62265.0,62264.0,0.05221]
[1728371859294,0.001,62265.0,62263.0,0.00240906]
[1728371859295,0.001,62268.0,62267.0,0.052207]
[1728371859496,0.002,62268.0,62267.0,0.052207]
[1728371859885,0.001,62268.0,62267.0,0.052207]
[1728371860495,0.002,62268.0,62267.0,0.052207]
[1728371861095,0.001,62268.0,62267.0,0.052207]
[1728371861998,0.002,62268.0,62267.0,0.052207]
[1728371867197,0.002,62268.0,62263.0,0.00240906]
[1728371867198,0.052209,62265.0,62263.0,0.00240906]
[1728371867409,0.2538,62264.0,62263.0,0.00240906]
[1728371867903,0.30601,62264.0,62263.0,0.00240906]
[1728371868104,0.30601,62264.0,62257.0,0.3608]
[1728371868105,0.052215,62259.0,62257.0,0.3608]
[1728371868298,0.242215,62258.0,62257.0,0.3608]
[1728371868797,0.052218,62255.0,62247.0,0.0037]
[1728371868998,0.19,62248.0,62246.0,0.413024]
[1728371869302,0.19,62248.0,62246.0,0.3608]
[1728371870300,0.01911175,62248.0,62246.0,0.413024]
[1728371870610,0.19,62251.0,62246.0,0.413024]
[1728371871999,0.001,62248.0,62246.0,0.413024]
[1728371872905,0.192,62251.0,62247.0,0.052224]
[1728371873308,0.192,62251.0,62247.0,0.413024]
[1728371874401,0.192,62251.0,62247.0,0.46101579]
[1728371874604,0.192,62251.0,62248.0,0.04799179]
[1728371875005,0.191,62251.0,62248.0,0.04799179]
[1728371875213,0.01878081,62253.0,62249.0,0.052222]
[1728371875411,0.052218,62254.0,62249.0,0.052222]
[1728371876005,0.001,62251.0,62249.0,0.052222]
[1728371876315,0.002,62251.0,62249.0,0.052222]
[1728371877005,0.002,62251.0,62250.0,0.04799179]
[1728371877413,0.002,62251.0,62249.0,0.10021379]
[1728371877604,0.001,62251.0,62249.0,0.10021379]
[1728371877798,0.02020745,62254.0,62249.0,0.10021379]
[1728371878009,0.02120745,62254.0,62250.0,0.052221]
[1728371878408,0.001,62251.0,62250.0,0.052221]
[1728371878607,0.002,62251.0,62250.0,0.052221]
[1728371879120,0.001,62251.0,62250.0,0.052221]
[1728371879423,0.02120745,62254.0,62251.0,0.05222]
[1728371879602,0.002,62254.0,62251.0,0.05222]
[1728371879802,0.001,62254.0,62251.0,0.05222]
[1728371880417,0.001,62254.0,62247.0,0.40979179]
[1728371880714,0.19,62253.0,62247.0,0.3608]
[1728371880918,0.242219,62253.0,62250.0,0.04799179]
[1728371881512,0.242219,62253.0,62248.0,0.052222]
[1728371881920,0.242219,62253.0,62247.0,0.3608]
[1728371882110,0.001,62254.0,62253.0,0.052219]
[1728371882307,0.001,62254.0,62253.0,0.413019]
[1728371882704,0.052211,62262.0,62255.0,0.052217]
[1728371882917,0.08262916,62264.0,62259.0,0.052214]
[1728371883218,0.19,62260.0,62253.0,0.3933]
[1728371883410,0.19,62260.0,62254.0,0.052218]
[1728371884209,0.19,62260.0,62255.0,0.052217]
[1728371884620,0.001,62262.0,62253.0,0.3608]
[1728371884621,0.19,62256.0,62253.0,0.3608]
[1728371884919,0.19,62256.0,62247.0,0.3608]
[1728371885416,0.19,62256.0,62248.0,0.052223]
[1728371885614,0.19,62256.0,62251.0,0.05222]
[1728371886016,0.19,62252.0,62247.0,0.3608]
[1728371886210,0.19,62248.0,62247.0,0.413024]
[1728371886722,0.19,62252.0,62247.0,0.3608]
[1728371886915,0.19,62252.0,62250.0,0.052221]
[1728371887311,0.191,62252.0,62250.0,0.052221]
[1728371888218,0.191,62252.0,62251.0,0.052221]
[1728371888817,0.192,62252.0,62251.0,0.052221]
[1728371889406,0.21064509,62252.0,62247.0,0.3608]
[1728371890010,0.21064509,62252.0,62248.0,0.052223]
[1728371890712,0.20964509,62252.0,62248.0,0.052223]
[1728371890911,0.21064509,62252.0,62248.0,0.052223]
[1728371892121,0.21064509,62252.0,62247.0,0.3608]
[1728371892419,0.052222,62250.0,62247.0,0.3608]
[1728371892721,0.21064509,62252.0,62250.0,0.052221]
[1728371892916,0.192,62252.0,62247.0,0.3608]
[1728371893121,0.19,62248.0,62244.0,0.052226]
[1728371893622,0.19,62248.0,62240.0,0.00240962]
[1728371893922,0.19,62248.0,62247.0,0.052224]
[1728371894118,0.2524,62251.0,62246.0,0.052224]
[1728371894316,0.304621,62251.0,62246.0,0.052224]
[1728371895323,0.305621,62251.0,62246.0,0.052224]
[1728371896024,0.001,62248.0,62246.0,0.052224]
[1728371896624,0.19,62247.0,62246.0,0.052224]
[1728371898914,0.191,62247.0,62240.0,0.05463862]
[1728371899115,0.052229,62241.0,62240.0,0.00240962]
[1728371899720,0.19,62243.0,62239.0,0.04799179]
[1728371899926,0.24223,62240.0,62239.0,0.04799179]
[1728371900225,0.24223,62240.0,62228.0,0.3585]
[1728371900226,0.052239,62229.0,62228.0,0.3585]
[1728371900429,0.052239,62229.0,62228.0,0.001]
[1728371900430,0.19,62229.0,62228.0,0.001]
[1728371900621,0.052238,62230.0,62226.0,0.3608]
[1728371900821,0.0321,62234.0,62226.0,0.3608]
[1728371901125,0.0321,62234.0,62231.0,0.052237]
[1728371901325,0.0321,62234.0,62226.0,0.3608]
[1728371901326,0.19,62232.0,62229.0,0.052239]
[1728371901929,0.001,62230.0,62229.0,0.052239]
[1728371902626,0.191,62232.0,62230.0,0.052238]
[1728371903333,0.20971739,62232.0,62230.0,0.052238]
[1728371903934,0.21071739,62232.0,62230.0,0.052238]
[1728371904729,0.001,62230.0,62226.0,0.3608]
[1728371904943,0.001,62230.0,62229.0,0.052239]
[1728371905441,0.21071739,62232.0,62231.0,0.052237]
[1728371905936,0.20971739,62232.0,62231.0,0.052237]
[1728371906534,0.01971739,62232.0,62231.0,0.413037]
[1728371906729,0.0329,62239.0,62231.0,0.3608]
[1728371906938,0.00241096,62242.0,62237.0,0.19]
[1728371907333,0.02095638,62242.0,62237.0,0.19]
[1728371907541,0.00241096,62242.0,62241.0,0.052229]
[1728371907841,0.00241096,62242.0,62236.0,0.3608]
[1728371908041,0.19,62239.0,62237.0,0.052232]
[1728371909433,0.19,62239.0,62230.0,0.3608]
[1728371909636,0.00441096,62242.0,62230.0,0.413038]
[1728371909637,0.19,62232.0,62230.0,0.413038]
[1728371910138,0.19,62232.0,62231.0,0.052237]
[1728371910838,0.191,62232.0,62231.0,0.052237]
[1728371911230,0.192,62232.0,62231.0,0.052237]
[1728371913233,0.21097301,62232.0,62231.0,0.052237]
[1728371913540,0.002,62232.0,62231.0,0.052237]
[1728371914638,0.00241096,62242.0,62241.0,0.052229]
[1728371914939,0.00241096,62242.0,62241.0,0.413029]
[1728371916039,0.00341096,62242.0,62241.0,0.413029]
[1728371916840,0.00441096,62242.0,62241.0,0.414029]
[1728371919243,0.04457676,62242.0,62241.0,0.414029]
[1728371920143,0.04457676,62242.0,62241.0,0.053229]
[1728371922649,0.0421658,62242.0,62241.0,0.053229]
[1728371922849,0.0421658,62242.0,62241.0,0.002159]
[1728371923350,0.0421658,62242.0,62241.0,0.054388]
[1728371926449,0.2321658,62242.0,62241.0,0.052229]
[1728371927243,0.2321658,62242.0,62230.0,0.03]
[1728371927441,0.3608,62240.0,62234.0,0.052235]
[1728371927649,0.19,62235.0,62229.0,0.052239]
[1728371927841,0.19,62230.0,62229.0,0.052239]
[1728371928639,0.2211,62234.0,62230.0,0.001]
[1728371928849,0.2211,62234.0,62231.0,0.052237]
[1728371929149,0.2211,62234.0,62232.0,0.052236]
[1728371929455,0.0421658,62242.0,62240.0,0.05223]
[1728371929848,0.05223,62240.0,62234.0,0.052234]
[1728371930053,0.19,62235.0,62234.0,0.052234]
[1728371930648,0.19,62235.0,62233.0,0.3608]
[1728371930951,0.0312,62234.0,62233.0,0.3608]
[1728371931343,0.0322,62234.0,62233.0,0.3608]
[1728371931849,0.0312,62234.0,62233.0,0.414036]
[1728371932254,0.2839,62234.0,62233.0,0.414036]
[1728371932754,0.2839,62234.0,62233.0,0.3618]
[1728371932954,0.2839,62234.0,62233.0,0.001]
[1728371933353,0.37630596,62234.0,62233.0,0.001]
[1728371933660,0.052242,62225.0,62224.0,0.0037]
[1728371933956,0.052242,62225.0,62218.0,0.052248]
[1728371933957,0.052244,62224.0,62218.0,0.052248]
[1728371934154,0.3608,62230.0,62218.0,0.052248]
[1728371934155,0.19,62223.0,62218.0,0.052248]
[1728371934357,0.0314,62222.0,62218.0,0.052248]
[1728371934852,0.19,62219.0,62218.0,0.052248]
[1728371935949,0.19,62219.0,62217.0,0.052249]
[1728371936152,0.0314,62221.0,62213.0,0.3608]
[1728371936451,0.2546,62222.0,62213.0,0.3608]
[1728371936452,0.2224,62222.0,62213.0,0.3608]
[1728371936855,0.001,62219.0,62214.0,0.052252]
[1728371937153,0.001,62219.0,62218.0,0.052248]
[1728371938361,0.002,62219.0,62218.0,0.052248]
[1728371938860,0.192,62219.0,62218.0,0.052248]
[1728371939248,0.191,62219.0,62218.0,0.052248]
[1728371940259,0.192,62219.0,62218.0,0.052248]
[1728371940956,0.192,62219.0,62214.0,0.3608]
[1728371941152,0.002,62219.0,62216.0,0.05225]
[1728371941354,0.19,62217.0,62216.0,0.05225]
[1728371942762,0.002,62219.0,62214.0,0.3608]
[1728371942957,0.04118065,62219.0,62218.0,0.052248]
[1728371943664,0.04118065,62219.0,62218.0,0.083448]
[1728371944961,0.04218065,62219.0,62218.0,0.083448]
[1728371950360,0.04218065,62219.0,62218.0,0.052248]
[1728371950568,0.04218065,62219.0,62214.0,0.64063]
[1728371950569,0.04218065,62219.0,62214.0,0.27983]
[1728371950771,0.19,62215.0,62214.0,0.27883]
[1728371951359,0.032,62218.0,62214.0,0.27883]
[1728371951565,0.032,62218.0,62217.0,0.052249]
[1728371952164,0.04118065,62219.0,62218.0,0.052248]
[1728371952368,0.04118065,62219.0,62218.0,0.242248]
[1728371953059,0.001,62218.0,62214.0,0.27883]
[1728371953266,0.001,62218.0,62217.0,0.19]
[1728371953664,0.0813613,62219.0,62218.0,0.052248]
[1728371953868,0.0823613,62219.0,62218.0,0.052248]
[1728371954865,0.0813613,62219.0,62218.0,0.052248]
[1728371955664,0.0823613,62219.0,62218.0,0.052248]
[1728371956069,0.0813613,62219.0,62218.0,0.052248]
[1728371956767,0.0823613,62219.0,62218.0,0.052248]
[1728371966083,0.0823613,62219.0,62214.0,0.249108]
[1728371966871,0.1346083,62219.0,62214.0,0.249108]
[1728371967076,0.1336083,62219.0,62214.0,0.249108]
[1728371967278,0.1346083,62219.0,62214.0,0.249108]
[1728371967480,0.1346083,62219.0,62212.0,0.052253]
[1728371968268,0.1336083,62219.0,62212.0,0.052253]
[1728371968578,0.1346083,62219.0,62212.0,0.052253]
[1728371969579,0.052249,62218.0,62212.0,0.052253]
[1728371970681,0.242251,62215.0,62210.0,0.3608]
[1728371971388,0.0311,62217.0,62208.0,0.00112]
[1728371971389,0.242254,62211.0,62208.0,0.00112]
[1728371971571,0.242254,62211.0,62205.0,0.05466979]
[1728371972277,0.19,62207.0,62205.0,0.05466979]
[1728371972873,0.19,62207.0,62202.0,0.33349979]
[1728371973075,0.053254,62211.0,62202.0,0.33349979]
[1728371973076,0.19,62203.0,62202.0,0.33349979]
[1728371974488,0.191,62207.0,62202.0,0.38576179]
[1728371974780,0.191,62207.0,62203.0,0.05226]
[1728371975471,0.20980198,62207.0,62202.0,0.33349979]
[1728371975679,0.19,62203.0,62202.0,0.33349979]
[1728371976071,0.052262,62202.0,62200.0,1.00108]
[1728371976276,0.052262,62202.0,62192.0,0.0037]
[1728371976277,0.052269,62194.0,62192.0,0.0037]
[1728371976480,0.48232,62201.0,62187.0,0.00241167]
[1728371976481,0.052271,62191.0,62187.0,0.00241167]
[1728371976788,0.581,62193.0,62187.0,0.00241167]
[1728371976789,0.3608,62188.0,62187.0,0.00241167]
[1728371977187,1.5058,62188.0,62179.0,0.0037]
[1728371977382,0.24228,62180.0,62175.0,0.3608]
[1728371977683,0.19,62176.0,62175.0,0.3608]
[1728371978090,0.19,62184.0,62175.0,0.3608]
[1728371978383,0.19,62179.0,62175.0,0.413084]
[1728371978585,0.001,62180.0,62179.0,0.05228]
[1728371979286,0.01851429,62185.0,62184.0,0.052277]
[1728371979480,0.0626,62188.0,62186.0,0.052274]
[1728371979680,0.19,62187.0,62186.0,0.052274]
[1728371980983,0.001,62185.0,62179.0,0.05228]
[1728371981291,0.191,62180.0,62179.0,0.05228]
[1728371981785,0.19,62180.0,62179.0,0.05228]
[1728371981976,0.19,62184.0,62180.0,0.05228]
[1728371982176,0.19,62184.0,62175.0,0.3608]
[1728371982579,0.001,62180.0,62179.0,0.052281]
[1728371982778,0.001,62180.0,62175.0,0.3608]
[1728371982779,0.001,62180.0,62175.0,0.331111]
[1728371983978,0.001,62180.0,62179.0,0.052281]
[1728371984392,0.002,62180.0,62179.0,0.052281]
[1728371984884,0.001,62180.0,62179.0,0.052281]
[1728371985088,0.191,62184.0,62179.0,0.052281]
[1728371985397,0.001,62180.0,62179.0,0.052281]
[1728371985894,0.001,62180.0,62175.0,0.331111]
[1728371986092,0.002,62180.0,62177.0,0.052282]
[1728371986484,0.002,62180.0,62178.0,0.052282]
[1728371987585,0.191,62180.0,62175.0,0.331111]
[1728371987784,0.19,62177.0,62175.0,0.331111]
[1728371987992,0.0305,62176.0,62175.0,0.331111]
[1728371989387,0.0315,62176.0,62175.0,0.331111]
[1728371989591,0.0315,62176.0,62175.0,0.331031]
[1728371990287,0.0325,62176.0,62175.0,0.331031]
[1728371992097,0.0325,62176.0,62174.0,0.052285]
[1728371992390,0.0325,62176.0,62165.0,0.3966]
[1728371992391,0.052292,62166.0,62165.0,0.0037]
[1728371992583,0.052293,62165.0,62160.0,0.08044]
[1728371992778,0.242295,62163.0,62160.0,0.08044]
[1728371992983,0.0328,62162.0,62159.0,0.35927]
[1728371993184,0.3608,62160.0,62152.0,0.0037]
[1728371993389,0.3608,62160.0,62134.0,0.3608]
[1728371993390,0.3608,62153.0,62130.0,0.008]
[1728371993594,0.052317,62136.0,62131.0,0.3608]
[1728371993791,0.19,62133.0,62132.0,0.06141628]
[1728371994181,0.19,62133.0,62112.0,0.06434964]
[1728371994182,1.03364,62133.0,62112.0,0.06434964]
[1728371994386,0.19,62119.0,62115.0,0.00112]
[1728371994592,0.3608,62128.0,62118.0,0.3608]
[1728371994782,0.3608,62128.0,62122.0,0.052329]
[1728371995189,0.5508,62128.0,62122.0,0.052329]
[1728371995388,0.19,62123.0,62114.0,0.0306]
[1728371995584,0.19,62123.0,62118.0,0.3608]
[1728371995789,0.19,62126.0,62119.0,0.413131]
[1728371996087,0.001,62133.0,62123.0,0.052328]
[1728371996292,0.19,62132.0,62123.0,0.052328]
[1728371996795,0.19,62132.0,62124.0,0.413127]
[1728371997185,0.001,62133.0,62130.0,0.052322]
[1728371997488,0.001,62133.0,62131.0,0.052321]
[1728371997690,0.19,62138.0,62134.0,0.052319]
[1728371997993,0.19,62142.0,62137.0,0.052316]
[1728371998198,0.01939921,62144.0,62139.0,0.3608]
[1728371998391,0.1924147,62146.0,62140.0,0.052314]
[1728371998598,0.1924147,62146.0,62141.0,0.052313]
[1728371998790,0.19,62143.0,62139.0,0.3608]
[1728371999091,0.3608,62142.0,62134.0,0.3608]
[1728371999296,0.19,62135.0,62129.0,0.413122]
[1728371999798,0.19,62135.0,62130.0,0.052322]
[1728372000697,0.19,62135.0,62132.0,0.05232]
[1728372000897,0.19,62135.0,62129.0,0.3608]
[1728372001500,0.3608,62130.0,62124.0,0.39571427]
[1728372001701,0.19,62128.0,62124.0,0.39571427]
[1728372002301,0.19,62125.0,62124.0,0.36321427]
[1728372002509,0.19,62125.0,62124.0,0.00241427]
[1728372002906,0.242327,62125.0,62118.0,0.28124427]
[1728372003096,0.19,62119.0,62118.0,0.28124427]
[1728372003406,0.19,62119.0,62103.0,0.3914]
[1728372003607,0.19,62112.0,62108.0,0.05234]
[1728372004307,0.19,62109.0,62103.0,0.36188]
[1728372004501,0.3608,62114.0,62103.0,0.3608]
[1728372004502,0.19,62113.0,62103.0,0.3608]
[1728372004695,0.19,62113.0,62109.0,0.05234]
[1728372005200,0.19,62110.0,62103.0,0.3608]
[1728372005405,0.242342,62106.0,62097.0,0.45836446]
[1728372005606,0.001,62112.0,62104.0,0.19]
[1728372005800,0.052338,62112.0,62104.0,0.19]
[1728372006205,0.19,62106.0,62097.0,0.51071446]
[1728372006411,0.052338,62112.0,62105.0,0.25676479]
[1728372006910,0.002,62113.0,62106.0,0.0305]
[1728372007506,0.001,62113.0,62106.0,0.0305]
[1728372007712,0.001,62110.0,62106.0,0.0305]
[1728372007908,0.19,62109.0,62106.0,0.0305]
[1728372008404,0.001,62110.0,62107.0,0.052341]
[1728372008599,0.001,62110.0,62109.0,0.3608]
[1728372008799,0.001,62112.0,62109.0,0.41314]
[1728372008997,0.24474236,62125.0,62109.0,0.5508]
[1728372009214,0.19,62121.0,62113.0,0.052336]
[1728372009409,0.19,62117.0,62109.0,0.3608]
[1728372009608,0.052333,62118.0,62114.0,0.08059199]
[1728372009911,0.052333,62118.0,62111.0,0.09671039]
[1728372009912,0.052333,62118.0,62115.0,0.20332266]
[1728372010112,0.052335,62115.0,62113.0,0.08059199]
[1728372010302,0.3608,62117.0,62110.0,0.08059199]
[1728372010506,0.3608,62117.0,62097.0,0.3608]
[1728372010507,0.3608,62111.0,62108.0,0.06447765]
[1728372010706,0.052352,62095.0,62089.0,0.04682697]
[1728372010906,0.052352,62095.0,62073.0,0.14506558]
[1728372010907,0.5508,62090.0,62073.0,0.14506558]
[1728372011107,0.19,62074.0,62070.0,4e-05]
[1728372011313,0.052378,62064.0,62054.0,0.00241714]
[1728372011515,0.31241912,62072.0,62053.0,0.3608]
[1728372011516,0.19,62055.0,62053.0,0.3608]
[1728372011810,0.19,62055.0,62054.0,0.052386]
[1728372012317,0.19,62060.0,62054.0,0.3608]
[1728372012615,0.3608,62068.0,62054.0,0.3608]
[1728372012616,0.6408,62068.0,62054.0,0.3608]
[1728372012815,0.28,62073.0,62064.0,0.3608]
[1728372013018,0.0075,62074.0,62070.0,0.052373]
[1728372013311,0.0075,62074.0,62064.0,0.3608]
[1728372013312,0.0075,62074.0,62072.0,0.052371]
[1728372013527,0.3608,62082.0,62072.0,0.052371]
[1728372014017,0.3608,62075.0,62063.0,0.28]
[1728372014316,0.3608,62082.0,62072.0,0.05237]
[1728372014524,0.38006396,62082.0,62072.0,0.05237]
[1728372014910,0.38006396,62082.0,62072.0,0.03837]
[1728372015608,0.36321838,62077.0,62072.0,0.03837]
[1728372015809,0.36321838,62077.0,62064.0,0.052378]
[1728372016019,0.3608,62070.0,62065.0,0.12281194]
[1728372016219,0.3608,62070.0,62061.0,0.05238]
[1728372016512,0.00341838,62077.0,62069.0,0.3608]
[1728372016721,0.00341838,62077.0,62076.0,0.3608]
[1728372016911,0.0112,62094.0,62076.0,0.48363271]
[1728372017112,0.3608,62101.0,62076.0,0.48363271]
[1728372017113,0.0112,62100.0,62090.0,0.052356]
[1728372017317,0.28,62093.0,62091.0,0.12278202]
[1728372017524,0.05236,62085.0,62076.0,0.00349627]
[1728372017719,0.3608,62087.0,62077.0,0.27226142]
[1728372017915,0.3608,62087.0,62078.0,0.12279927]
[1728372018111,0.3608,62087.0,62079.0,0.12279927]
[1728372018313,0.36164,62093.0,62080.0,0.27226144]
[1728372018511,0.36164,62093.0,62084.0,0.05236]
[1728372018717,0.3608,62093.0,62085.0,0.12279927]
[1728372018921,0.3608,62093.0,62086.0,0.12279927]
[1728372019112,0.3608,62093.0,62087.0,0.12279927]
[1728372019315,0.3608,62093.0,62088.0,0.12279927]
[1728372019623,0.07169903,62095.0,62091.0,0.3608]
[1728372019624,0.01934703,62095.0,62091.0,0.3608]
[1728372019816,0.3608,62102.0,62094.0,0.28]
[1728372020017,0.052343,62106.0,62094.0,0.28]
[1728372020214,0.052345,62103.0,62091.0,0.3608]
[1728372020419,0.3608,62097.0,62087.0,0.052358]
[1728372020621,0.3608,62097.0,62092.0,0.27221254]
[1728372020918,0.3608,62097.0,62092.0,0.12277477]
[1728372021120,0.3608,62097.0,62093.0,0.12277477]
[1728372021517,0.413151,62097.0,62085.0,0.05236]
[1728372021717,0.413151,62097.0,62087.0,0.052358]
[1728372021913,0.3608,62097.0,62089.0,0.052357]
[1728372022118,0.413146,62102.0,62090.0,0.27221452]
[1728372022320,0.052349,62099.0,62091.0,0.27221452]
[1728372022514,0.052349,62099.0,62083.0,2.41650818]
[1728372022515,0.28,62097.0,62092.0,0.12277566]
[1728372022724,0.28,62097.0,62093.0,0.12277566]
[1728372022931,0.28,62097.0,62094.0,0.04080566]
[1728372023121,0.28,62097.0,62083.0,1.9552]
[1728372023423,0.6408,62102.0,62094.0,0.052352]
[1728372023621,0.6408,62102.0,62092.0,0.052354]
[1728372023622,0.002,62093.0,62092.0,0.052354]
[1728372023820,0.3608,62102.0,62100.0,0.052347]
[1728372024023,0.00241606,62108.0,62101.0,0.3608]
[1728372024222,0.00241606,62108.0,62106.0,0.052342]
[1728372024426,0.00241606,62108.0,62106.0,0.652342]
[1728372024726,0.0037,62120.0,62112.0,0.052337]
[1728372024924,0.38004136,62121.0,62107.0,0.3608]
[1728372025130,0.28,62117.0,62108.0,0.05234]
[1728372025423,0.3608,62109.0,62097.0,0.00611546]
[1728372025627,0.332347,62102.0,62097.0,0.00241546]
[1728372025835,0.052347,62101.0,62097.0,0.00241546]
[1728372026128,0.28,62102.0,62097.0,0.00241546]
[1728372026715,0.28,62111.0,62097.0,0.00241546]
[1728372026926,0.6408,62111.0,62102.0,0.052345]
[1728372027226,0.001,62108.0,62102.0,0.052345]
[1728372027430,0.001,62108.0,62104.0,0.052344]
[1728372027829,0.36164,62111.0,62107.0,0.052342]
[1728372028025,0.36164,62111.0,62109.0,0.05234]
[1728372028026,0.3608,62111.0,62109.0,0.05234]
[1728372028330,0.00241597,62115.0,62113.0,0.052336]
[1728372029632,0.28,62121.0,62116.0,0.052334]
[1728372030227,0.3608,62125.0,62117.0,0.052333]
[1728372030635,0.3608,62125.0,62118.0,0.052332]
[1728372030823,0.002,62121.0,62118.0,0.052332]
[1728372031128,0.282,62121.0,62111.0,0.084838]
[1728372031335,0.282,62121.0,62113.0,0.052336]
[1728372031637,0.002,62121.0,62119.0,0.052331]
[1728372032428,0.3608,62129.0,62122.0,0.052329]
[1728372032836,0.3608,62129.0,62117.0,0.331158]
[1728372033037,0.001,62125.0,62124.0,0.052327]
[1728372033749,0.001,62125.0,62117.0,0.383491]
[1728372033950,0.001,62125.0,62117.0,0.331158]
[1728372034550,0.28,62126.0,62118.0,1.5]
[1728372034848,0.28,62126.0,62119.0,0.003]
[1728372035039,0.28,62126.0,62123.0,0.052328]
[1728372035242,0.001,62125.0,62123.0,0.052328]
[1728372035547,0.3608,62129.0,62128.0,0.052324]
[1728372035943,0.3608,62138.0,62131.0,0.052321]
[1728372036145,0.3608,62138.0,62128.0,1.44368]
[1728372036146,0.3608,62138.0,62128.0,0.36196]
[1728372036446,0.0037,62145.0,62128.0,0.36196]
[1728372036447,0.3608,62140.0,62133.0,0.3608]
[1728372036747,0.04023885,62129.0,62123.0,0.3608]
[1728372037147,0.28,62127.0,62123.0,0.3608]
[1728372037643,0.04023885,62129.0,62123.0,0.3608]
[1728372038548,0.001,62126.0,62123.0,0.3608]
[1728372039256,0.001,62125.0,62123.0,0.3698]
[1728372039948,0.04023885,62129.0,62123.0,0.413128]
[1728372040656,0.04023885,62129.0,62123.0,0.3608]
[1728372040857,0.04023885,62129.0,62127.0,0.052324]
[1728372041554,0.04123885,62129.0,62127.0,0.052324]
[1728372041755,0.04123885,62129.0,62123.0,0.3748]
[1728372042256,0.04123885,62129.0,62123.0,0.427128]
[1728372042447,0.09356185,62129.0,62123.0,0.3748]
[1728372042649,0.09356185,62129.0,62118.0,0.00241431]
[1728372042650,0.052328,62123.0,62118.0,0.00241431]
[1728372042852,0.28,62120.0,62112.0,0.3608]
[1728372043367,0.052329,62122.0,62113.0,0.052336]
[1728372043552,0.052329,62122.0,62114.0,0.052336]
[1728372043854,0.64164,62124.0,62123.0,0.014]
[1728372044059,0.3608,62124.0,62123.0,0.014]
[1728372044849,0.052324,62128.0,62123.0,0.014]
[1728372045251,0.70094845,62129.0,62123.0,0.014]
[1728372045456,0.052325,62127.0,62123.0,0.014]
[1728372045652,0.052325,62127.0,62112.0,0.3608]
[1728372045859,0.001,62120.0,62116.0,0.052334]
[1728372046156,0.001,62120.0,62117.0,0.052333]
[1728372046359,0.052325,62127.0,62123.0,0.001]
[1728372046952,0.052325,62127.0,62118.0,0.052332]
[1728372047257,0.053325,62127.0,62118.0,0.052332]
[1728372048360,0.001,62127.0,62121.0,0.28]
[1728372048552,0.001,62127.0,62125.0,0.052326]
[1728372048858,0.40187885,62129.0,62125.0,0.052326]
[1728372049061,0.40103885,62129.0,62125.0,0.052326]
[1728372049464,0.001,62127.0,62125.0,0.052326]
[1728372050061,0.40199886,62129.0,62117.0,0.3608]
[1728372050255,0.40103885,62129.0,62117.0,0.3608]
[1728372050561,0.40103885,62129.0,62123.0,0.052328]
[1728372050758,0.40103885,62129.0,62125.0,0.003]
[1728372051758,0.45336185,62129.0,62125.0,0.003]
[1728372051954,0.40103885,62129.0,62125.0,0.003]
[1728372052154,0.052324,62128.0,62125.0,0.003]
[1728372052352,0.052324,62128.0,62120.0,0.05233]